[Event "Early-Titled-Tuesday-Blitz-October-17-2023"]
[Site "Chess.com"]
[Date "2023.10.17"]
[Round "1"]
[White "beccrajoy"]
[Black "Aash20"]
[Result "0-1"]
[WhiteElo "1983"]
[BlackElo "2536"]
[TimeControl "180+1"]
[EndTime "8:06:05 PDT"]
[Termination "Aash20 won on time"]

1. e4 {[%clk 0:03:00.9]} 1... c5 {[%clk 0:02:58.1]} 2. Nf3 {[%clk 0:03:01.1]}
2... d6 {[%clk 0:02:57.8]} 3. d4 {[%clk 0:03:02]} 3... cxd4 {[%clk 0:02:57.7]}
4. Nxd4 {[%clk 0:03:02.9]} 4... Nf6 {[%clk 0:02:56.5]} 5. Nc3 {[%clk 0:03:03.3]}
5... g6 {[%clk 0:02:56.5]} 6. Bg5 {[%clk 0:03:03.3]} 6... Bg7 {[%clk 0:02:56.6]}
7. Bb5+ {[%clk 0:03:02.8]} 7... Bd7 {[%clk 0:02:56.3]} 8. Qe2 {[%clk 0:03:01.3]}
8... O-O {[%clk 0:02:55.4]} 9. O-O-O {[%clk 0:03:00.8]} 9... a6 {[%clk
0:02:54.7]} 10. Bc4 {[%clk 0:03:00.1]} 10... Nc6 {[%clk 0:02:53.4]} 11. Nxc6
{[%clk 0:02:58.6]} 11... bxc6 {[%clk 0:02:51.8]} 12. f3 {[%clk 0:02:39.4]} 12...
Qa5 {[%clk 0:02:49.1]} 13. e5 {[%clk 0:02:23.1]} 13... Nd5 {[%clk 0:02:44.6]}
14. Bxd5 {[%clk 0:01:48.3]} 14... cxd5 {[%clk 0:02:41.3]} 15. Nxd5 {[%clk
0:01:43.5]} 15... Qxa2 {[%clk 0:02:36.8]} 16. Nxe7+ {[%clk 0:01:30.2]} 16... Kh8
{[%clk 0:02:35.3]} 17. Bf6 {[%clk 0:01:30.5]} 17... Qa1+ {[%clk 0:02:27.3]} 18.
Kd2 {[%clk 0:01:29.8]} 18... Qxb2 {[%clk 0:02:27.4]} 19. Rb1 {[%clk 0:01:13.6]}
19... Qd4+ {[%clk 0:02:23.5]} 20. Qd3 {[%clk 0:00:50.9]} 20... dxe5 {[%clk
0:02:19.5]} 21. Bxg7+ {[%clk 0:00:39.6]} 21... Kxg7 {[%clk 0:02:18.3]} 22. Qxd4
{[%clk 0:00:40.1]} 22... exd4 {[%clk 0:02:18.9]} 23. Rb7 {[%clk 0:00:39.1]}
23... Bb5 {[%clk 0:02:17.6]} 24. Re1 {[%clk 0:00:26.3]} 24... Rab8 {[%clk
0:02:13.4]} 25. Rc7 {[%clk 0:00:25.8]} 25... Rfe8 {[%clk 0:02:06]} 26. Nd5
{[%clk 0:00:18.9]} 26... Rxe1 {[%clk 0:02:05.4]} 27. Kxe1 {[%clk 0:00:19.8]}
27... Re8+ {[%clk 0:02:05.1]} 28. Kd2 {[%clk 0:00:20]} 28... Re2+ {[%clk
0:02:04.9]} 29. Kc1 {[%clk 0:00:16.4]} 29... Rxg2 {[%clk 0:02:05.4]} 30. h4
{[%clk 0:00:13.1]} 30... Rh2 {[%clk 0:02:01.3]} 31. Nf4 {[%clk 0:00:07.2]} 31...
Rxh4 {[%clk 0:01:59.9]} 32. Ne6+ {[%clk 0:00:07.5]} 32... Kf6 {[%clk 0:02:00.2]}
33. Nc5 {[%clk 0:00:05.9]} 33... Rf4 {[%clk 0:01:58]} 34. Ne4+ {[%clk
0:00:03.1]} 34... Kg7 {[%clk 0:01:57.7]} 35. Nd6 {[%clk 0:00:03.3]} 35... Rxf3
{[%clk 0:01:57.8]} 36. Nxb5 {[%clk 0:00:02.6]} 36... axb5 {[%clk 0:01:57.7]} 37.
Rb7 {[%clk 0:00:01.9]} 37... Rf5 {[%clk 0:01:57.2]} 38. Rd7 {[%clk 0:00:01.8]}
38... h5 {[%clk 0:01:57.2]} 39. Rxd4 {[%clk 0:00:01.5]} 39... g5 {[%clk
0:01:57.8]} 40. Kd2 {[%clk 0:00:02.2]} 40... Kg6 {[%clk 0:01:58.2]} 41. Ke3
{[%clk 0:00:02.8]} 41... h4 {[%clk 0:01:57.8]} 42. Rg4 {[%clk 0:00:01.9]} 42...
Kh5 {[%clk 0:01:57.6]} 43. Rg1 {[%clk 0:00:02.2]} 43... g4 {[%clk 0:01:57.9]}
44. Ke4 {[%clk 0:00:02.6]} 44... Kg5 {[%clk 0:01:58.3]} 0-1

[Event "Early-Titled-Tuesday-Blitz-October-17-2023"]
[Site "Chess.com"]
[Date "2023.10.17"]
[Round "1"]
[White "VincentKeymer"]
[Black "Chessdreamer2020"]
[Result "1-0"]
[WhiteElo "3090"]
[BlackElo "2526"]
[TimeControl "180+1"]
[EndTime "8:06:06 PDT"]
[Termination "VincentKeymer won by checkmate"]

1. a3 {[%clk 0:03:00.9]} 1... c5 {[%clk 0:02:59.6]} 2. b4 {[%clk 0:03:00.1]}
2... Nc6 {[%clk 0:03:00.5]} 3. b5 {[%clk 0:02:58.6]} 3... Nb8 {[%clk 0:02:57.1]}
4. Nf3 {[%clk 0:02:55.6]} 4... Nf6 {[%clk 0:02:55.8]} 5. Bb2 {[%clk 0:02:55.3]}
5... d6 {[%clk 0:02:52.8]} 6. d3 {[%clk 0:02:50.5]} 6... g6 {[%clk 0:02:51.6]}
7. c4 {[%clk 0:02:48.6]} 7... Bg7 {[%clk 0:02:51.9]} 8. g3 {[%clk 0:02:48.4]}
8... O-O {[%clk 0:02:48.4]} 9. Bg2 {[%clk 0:02:49]} 9... Nbd7 {[%clk 0:02:41]}
10. O-O {[%clk 0:02:48.4]} 10... e5 {[%clk 0:02:33.3]} 11. Nc3 {[%clk
0:02:36.1]} 11... Re8 {[%clk 0:02:27.4]} 12. Nd2 {[%clk 0:02:35.9]} 12... Nf8
{[%clk 0:02:21.4]} 13. a4 {[%clk 0:02:35.5]} 13... Rb8 {[%clk 0:02:11.1]} 14. a5
{[%clk 0:02:34.4]} 14... Bf5 {[%clk 0:02:06.7]} 15. Re1 {[%clk 0:02:32]} 15...
Qd7 {[%clk 0:02:06.4]} 16. a6 {[%clk 0:02:31.5]} 16... Bh3 {[%clk 0:02:04.7]}
17. Bxb7 {[%clk 0:02:28.3]} 17... Rxb7 {[%clk 0:02:03.9]} 18. axb7 {[%clk
0:02:29.2]} 18... Qxb7 {[%clk 0:02:04.8]} 19. f3 {[%clk 0:02:29]} 19... h5
{[%clk 0:02:03.1]} 20. Qa4 {[%clk 0:02:28.5]} 20... Re7 {[%clk 0:01:59.4]} 21.
Qa6 {[%clk 0:02:26.9]} 21... Qd7 {[%clk 0:01:58.6]} 22. Nde4 {[%clk 0:02:26.4]}
22... Nxe4 {[%clk 0:01:44.9]} 23. Nxe4 {[%clk 0:02:27.3]} 23... d5 {[%clk
0:00:29.2]} 24. cxd5 {[%clk 0:02:16.9]} 24... Qxd5 {[%clk 0:00:26.2]} 25. Qd6
{[%clk 0:02:16.9]} 25... Qb7 {[%clk 0:00:24.8]} 26. Nxc5 {[%clk 0:01:45.4]}
26... Qc7 {[%clk 0:00:24.4]} 27. Qxc7 {[%clk 0:01:44.9]} 27... Rxc7 {[%clk
0:00:25.3]} 28. Ne4 {[%clk 0:01:45]} 28... Bd7 {[%clk 0:00:22.2]} 29. Rec1
{[%clk 0:01:44.2]} 29... Rb7 {[%clk 0:00:17.5]} 30. Nc5 {[%clk 0:01:44.1]} 30...
Rxb5 {[%clk 0:00:17.8]} 31. Nxd7 {[%clk 0:01:44.1]} 31... Nxd7 {[%clk 0:00:14]}
32. Bc3 {[%clk 0:01:44.3]} 32... Rb7 {[%clk 0:00:12.8]} 33. Kf1 {[%clk 0:01:43]}
33... Nb6 {[%clk 0:00:06.5]} 34. Ra5 {[%clk 0:01:39.8]} 34... f6 {[%clk
0:00:06.1]} 35. Bd2 {[%clk 0:01:39.6]} 35... Kh7 {[%clk 0:00:05.5]} 36. Be3
{[%clk 0:01:38.8]} 36... Bh6 {[%clk 0:00:03.1]} 37. Bxh6 {[%clk 0:01:38.6]}
37... Kxh6 {[%clk 0:00:04]} 38. Ra6 {[%clk 0:01:38.2]} 38... Kg5 {[%clk
0:00:02.8]} 39. h4+ {[%clk 0:01:37.9]} 39... Kf5 {[%clk 0:00:01.3]} 40. Rca1
{[%clk 0:01:38.6]} 40... Nc8 {[%clk 0:00:01.2]} 41. e4# {[%clk 0:01:38.7]} 1-0

[Event "Early-Titled-Tuesday-Blitz-October-17-2023"]
[Site "Chess.com"]
[Date "2023.10.17"]
[Round "1"]
[White "faraone99"]
[Black "Boxerandchessplayer"]
[Result "1-0"]
[WhiteElo "2574"]
[BlackElo "2205"]
[TimeControl "180+1"]
[EndTime "8:06:06 PDT"]
[Termination "faraone99 won by resignation"]

1. e4 {[%clk 0:03:00]} 1... e6 {[%clk 0:03:00.9]} 2. d4 {[%clk 0:02:59.5]} 2...
d5 {[%clk 0:03:00]} 3. Nc3 {[%clk 0:02:59.7]} 3... Nf6 {[%clk 0:02:58.7]} 4. e5
{[%clk 0:02:59.2]} 4... Nfd7 {[%clk 0:02:58.9]} 5. f4 {[%clk 0:02:59.6]} 5... c5
{[%clk 0:02:59.2]} 6. Nf3 {[%clk 0:03:00.4]} 6... Nc6 {[%clk 0:02:57.3]} 7. Be3
{[%clk 0:03:00.4]} 7... cxd4 {[%clk 0:02:44.3]} 8. Nxd4 {[%clk 0:02:59.6]} 8...
Qb6 {[%clk 0:02:45]} 9. Qd2 {[%clk 0:02:58.1]} 9... Nc5 {[%clk 0:02:19.1]} 10.
Nxc6 {[%clk 0:02:39.2]} 10... bxc6 {[%clk 0:02:20]} 11. Na4 {[%clk 0:02:37]}
11... Nxa4 {[%clk 0:02:09.4]} 12. Bxb6 {[%clk 0:02:36.2]} 12... Nxb6 {[%clk
0:02:10.3]} 13. Bd3 {[%clk 0:02:31.7]} 13... c5 {[%clk 0:02:09.2]} 14. c3 {[%clk
0:02:30.8]} 14... c4 {[%clk 0:02:09.1]} 15. Bc2 {[%clk 0:02:28.5]} 15... Bc5
{[%clk 0:02:10]} 16. O-O-O {[%clk 0:02:15.9]} 16... Bb7 {[%clk 0:02:10.5]} 17.
f5 {[%clk 0:02:14.7]} 17... O-O-O {[%clk 0:02:08]} 18. Kb1 {[%clk 0:02:14.4]}
18... Kb8 {[%clk 0:02:07.6]} 19. Qg5 {[%clk 0:02:10.4]} 19... g6 {[%clk
0:02:06.4]} 20. fxe6 {[%clk 0:02:08.4]} 20... fxe6 {[%clk 0:02:06.1]} 21. Rhf1
{[%clk 0:02:08.9]} 21... Rhf8 {[%clk 0:01:52]} 22. h4 {[%clk 0:02:00.6]} 22...
Nc8 {[%clk 0:01:44]} 23. h5 {[%clk 0:01:48.8]} 23... gxh5 {[%clk 0:01:40.1]} 24.
Qxh5 {[%clk 0:01:46.8]} 24... Ne7 {[%clk 0:01:37.7]} 25. Rf6 {[%clk 0:01:40.8]}
25... Bc8 {[%clk 0:01:34.6]} 26. Rdf1 {[%clk 0:01:40]} 26... Rh8 {[%clk
0:01:34.9]} 27. Rf7 {[%clk 0:01:39.1]} 27... Nc6 {[%clk 0:01:35.5]} 28. Ba4
{[%clk 0:01:25.6]} 28... Ne7 {[%clk 0:01:26.3]} 29. Rxh7 {[%clk 0:01:14.6]}
29... Rxh7 {[%clk 0:01:25.3]} 30. Qxh7 {[%clk 0:01:15.5]} 30... Nf5 {[%clk
0:01:23.5]} 31. Bc2 {[%clk 0:01:05]} 31... Ne3 {[%clk 0:01:20.3]} 32. Rf7 {[%clk
0:01:00.8]} 32... Nxg2 {[%clk 0:00:43.6]} 33. Ba4 {[%clk 0:00:53.9]} 33... d4
{[%clk 0:00:43.8]} 34. Bc6 {[%clk 0:00:49.7]} 1-0

[Event "Early-Titled-Tuesday-Blitz-October-17-2023"]
[Site "Chess.com"]
[Date "2023.10.17"]
[Round "1"]
[White "ChessPromotionAlex"]
[Black "Maluco_do_Natal_00"]
[Result "1-0"]
[WhiteElo "2543"]
[BlackElo "1986"]
[TimeControl "180+1"]
[EndTime "8:06:09 PDT"]
[Termination "ChessPromotionAlex won by resignation"]

1. e4 {[%clk 0:02:59]} 1... c5 {[%clk 0:02:59]} 2. Nf3 {[%clk 0:02:58.9]} 2...
Nc6 {[%clk 0:02:59.1]} 3. d4 {[%clk 0:02:59.1]} 3... cxd4 {[%clk 0:03:00]} 4.
Nxd4 {[%clk 0:02:59.4]} 4... Nf6 {[%clk 0:03:00.4]} 5. Nc3 {[%clk 0:02:59.3]}
5... e5 {[%clk 0:02:59.9]} 6. Ndb5 {[%clk 0:02:59.9]} 6... d6 {[%clk 0:03:00.3]}
7. Bg5 {[%clk 0:03:00.6]} 7... a6 {[%clk 0:03:00.7]} 8. Na3 {[%clk 0:03:01.3]}
8... Be7 {[%clk 0:03:00.4]} 9. Nc4 {[%clk 0:02:59]} 9... Be6 {[%clk 0:02:41.9]}
10. Bxf6 {[%clk 0:02:58.3]} 10... gxf6 {[%clk 0:02:42.4]} 11. Nd5 {[%clk
0:02:45.1]} 11... b5 {[%clk 0:02:30.5]} 12. Nce3 {[%clk 0:02:42]} 12... Bf8
{[%clk 0:02:14.8]} 13. Qf3 {[%clk 0:02:37.2]} 13... Bg7 {[%clk 0:02:09.4]} 14.
c3 {[%clk 0:02:35.6]} 14... O-O {[%clk 0:02:00.8]} 15. Nf5 {[%clk 0:02:22.2]}
15... Bxf5 {[%clk 0:01:52.6]} 16. Qxf5 {[%clk 0:02:23.1]} 16... Kh8 {[%clk
0:01:41.9]} 17. Qf3 {[%clk 0:02:17.1]} 17... b4 {[%clk 0:01:35.9]} 18. Be2
{[%clk 0:01:55.1]} 18... bxc3 {[%clk 0:01:34.8]} 19. bxc3 {[%clk 0:01:56]} 19...
Rb8 {[%clk 0:01:20.3]} 20. O-O {[%clk 0:01:51.8]} 20... a5 {[%clk 0:01:20.1]}
21. Rab1 {[%clk 0:01:46.8]} 21... Re8 {[%clk 0:00:37.9]} 22. Bb5 {[%clk
0:01:42.4]} 22... Qc8 {[%clk 0:00:20.5]} 23. Nxf6 {[%clk 0:01:37.6]} 23... Re6
{[%clk 0:00:14.8]} 24. Nd5 {[%clk 0:01:33.5]} 24... Ne7 {[%clk 0:00:12.8]} 25.
Bd7 {[%clk 0:01:28.6]} 25... Qxd7 {[%clk 0:00:09.6]} 26. Rxb8+ {[%clk
0:01:27.4]} 26... Ng8 {[%clk 0:00:09.7]} 27. Rfb1 {[%clk 0:01:24.2]} 27... Rg6
{[%clk 0:00:08.9]} 28. Rxg8+ {[%clk 0:01:11.7]} 28... Kxg8 {[%clk 0:00:07.5]}
29. Rb8+ {[%clk 0:01:11.7]} 29... Bf8 {[%clk 0:00:06.8]} 30. Nf6+ {[%clk
0:01:11.4]} 30... Rxf6 {[%clk 0:00:07.4]} 31. Qxf6 {[%clk 0:01:11.7]} 31... Qc7
{[%clk 0:00:06.8]} 32. Qg5+ {[%clk 0:01:11.2]} 1-0

[Event "Early-Titled-Tuesday-Blitz-October-17-2023"]
[Site "Chess.com"]
[Date "2023.10.17"]
[Round "1"]
[White "tarno17"]
[Black "jup1978"]
[Result "0-1"]
[WhiteElo "2132"]
[BlackElo "2550"]
[TimeControl "180+1"]
[EndTime "8:06:10 PDT"]
[Termination "jup1978 won by resignation"]

1. e4 {[%clk 0:03:00.5]} 1... e5 {[%clk 0:02:58.7]} 2. Nf3 {[%clk 0:03:00.5]}
2... Nf6 {[%clk 0:02:58.8]} 3. Nxe5 {[%clk 0:02:59.5]} 3... d6 {[%clk
0:02:59.2]} 4. Nf3 {[%clk 0:02:51.5]} 4... Nxe4 {[%clk 0:02:59.5]} 5. d3 {[%clk
0:02:52]} 5... Nf6 {[%clk 0:02:59.3]} 6. d4 {[%clk 0:02:52.8]} 6... g6 {[%clk
0:02:59.2]} 7. Be2 {[%clk 0:02:46.6]} 7... Bg7 {[%clk 0:02:59.6]} 8. O-O {[%clk
0:02:45.6]} 8... O-O {[%clk 0:03:00.2]} 9. h3 {[%clk 0:02:41]} 9... b6 {[%clk
0:03:00.5]} 10. Be3 {[%clk 0:02:36.7]} 10... Bb7 {[%clk 0:03:00.7]} 11. c4
{[%clk 0:02:33.8]} 11... Nbd7 {[%clk 0:03:00.5]} 12. Nc3 {[%clk 0:02:32.6]}
12... Re8 {[%clk 0:03:00.5]} 13. Qd2 {[%clk 0:02:30.4]} 13... Ne4 {[%clk
0:02:57]} 14. Nxe4 {[%clk 0:02:25.2]} 14... Bxe4 {[%clk 0:02:57.9]} 15. Bh6
{[%clk 0:02:19.2]} 15... Rb8 {[%clk 0:02:41]} 16. Rfe1 {[%clk 0:01:59.3]} 16...
Qf6 {[%clk 0:02:37.1]} 17. Rad1 {[%clk 0:01:54.8]} 17... Bxf3 {[%clk 0:02:34.9]}
18. Bxg7 {[%clk 0:01:41.9]} 18... Kxg7 {[%clk 0:02:27.3]} 19. Bxf3 {[%clk
0:01:40.2]} 19... Rxe1+ {[%clk 0:02:26.2]} 20. Rxe1 {[%clk 0:01:40.5]} 20... c5
{[%clk 0:02:26]} 21. dxc5 {[%clk 0:01:29.7]} 21... bxc5 {[%clk 0:02:22.1]} 22.
b3 {[%clk 0:01:27.7]} 22... Nf8 {[%clk 0:02:05.2]} 23. Bd5 {[%clk 0:01:12.8]}
23... Rd8 {[%clk 0:02:02.8]} 24. Qe3 {[%clk 0:01:05.1]} 24... Nd7 {[%clk
0:01:51.8]} 25. Qe7 {[%clk 0:00:51.2]} 25... Ne5 {[%clk 0:01:44.8]} 26. Qxa7
{[%clk 0:00:36.4]} 26... Nd3 {[%clk 0:01:43.5]} 27. Re2 {[%clk 0:00:30.2]} 27...
Ne5 {[%clk 0:01:37]} 28. a4 {[%clk 0:00:21.5]} 28... Rd7 {[%clk 0:01:36.9]} 29.
Qb8 {[%clk 0:00:18.4]} 29... Nd3 {[%clk 0:01:36.5]} 30. Qe8 {[%clk 0:00:15.5]}
30... Ra7 {[%clk 0:01:34]} 31. Qe3 {[%clk 0:00:09.4]} 31... Nf4 {[%clk
0:01:28.4]} 32. Rd2 {[%clk 0:00:06.6]} 32... Re7 {[%clk 0:01:25.4]} 33. Qg3
{[%clk 0:00:05.6]} 33... Ne2+ {[%clk 0:01:20.1]} 34. Kh2 {[%clk 0:00:04.7]}
34... Nxg3 {[%clk 0:01:19.7]} 35. fxg3 {[%clk 0:00:04.1]} 35... Qc3 {[%clk
0:01:18.3]} 36. Rf2 {[%clk 0:00:04.2]} 36... Qxb3 {[%clk 0:01:17.6]} 37. a5
{[%clk 0:00:04.2]} 37... Qa3 {[%clk 0:01:17.4]} 0-1

[Event "Early-Titled-Tuesday-Blitz-October-17-2023"]
[Site "Chess.com"]
[Date "2023.10.17"]
[Round "1"]
[White "PowerThinking2650"]
[Black "Freeeeeeeeeeeeeeeeee"]
[Result "1-0"]
[WhiteElo "2533"]
[BlackElo "1979"]
[TimeControl "180+1"]
[EndTime "8:06:12 PDT"]
[Termination "PowerThinking2650 won by resignation"]

1. e4 {[%clk 0:03:00.9]} 1... e5 {[%clk 0:02:58.5]} 2. Nf3 {[%clk 0:03:00.2]}
2... Nc6 {[%clk 0:02:58.6]} 3. Nc3 {[%clk 0:03:00.8]} 3... Nf6 {[%clk
0:02:57.6]} 4. d4 {[%clk 0:03:01.4]} 4... exd4 {[%clk 0:02:57.4]} 5. Nxd4 {[%clk
0:03:02.1]} 5... Bb4 {[%clk 0:02:57.1]} 6. Nxc6 {[%clk 0:03:02.4]} 6... bxc6
{[%clk 0:02:56.8]} 7. Bd3 {[%clk 0:03:03.1]} 7... O-O {[%clk 0:02:55.6]} 8. O-O
{[%clk 0:03:03.1]} 8... d5 {[%clk 0:02:55.9]} 9. exd5 {[%clk 0:03:04]} 9... cxd5
{[%clk 0:02:56]} 10. Bg5 {[%clk 0:03:04.6]} 10... Be6 {[%clk 0:02:48.9]} 11. Ne2
{[%clk 0:03:02.7]} 11... h6 {[%clk 0:02:46.4]} 12. Bh4 {[%clk 0:03:00.8]} 12...
Bd6 {[%clk 0:02:45.7]} 13. Nd4 {[%clk 0:03:00.2]} 13... c5 {[%clk 0:02:37.1]}
14. Nxe6 {[%clk 0:02:59.3]} 14... fxe6 {[%clk 0:02:36.7]} 15. c4 {[%clk
0:03:00]} 15... Qc7 {[%clk 0:02:31.8]} 16. Bg3 {[%clk 0:02:47.5]} 16... Bxg3
{[%clk 0:02:30.2]} 17. hxg3 {[%clk 0:02:48.4]} 17... Rad8 {[%clk 0:02:15.9]} 18.
Qe2 {[%clk 0:02:47.3]} 18... Rfe8 {[%clk 0:02:06.7]} 19. Rae1 {[%clk 0:02:45.2]}
19... d4 {[%clk 0:01:49]} 20. f4 {[%clk 0:02:31.9]} 20... Re7 {[%clk 0:01:35]}
21. Qf3 {[%clk 0:02:16.6]} 21... Qb7 {[%clk 0:01:27.6]} 22. b3 {[%clk
0:01:54.3]} 22... Qxf3 {[%clk 0:01:17.4]} 23. gxf3 {[%clk 0:01:55.2]} 23... Kf7
{[%clk 0:01:06]} 24. Re2 {[%clk 0:01:51.5]} 24... Rde8 {[%clk 0:01:01.9]} 25.
Rfe1 {[%clk 0:01:49.2]} 25... Nd7 {[%clk 0:00:53.7]} 26. Be4 {[%clk 0:01:46.3]}
26... Nf6 {[%clk 0:00:50.1]} 27. Bc6 {[%clk 0:01:43.2]} 27... Rc8 {[%clk
0:00:50]} 28. Bb5 {[%clk 0:01:39.2]} 28... Rb8 {[%clk 0:00:40.6]} 29. f5 {[%clk
0:01:33]} 29... Rb6 {[%clk 0:00:38]} 30. Kf2 {[%clk 0:01:17]} 30... a6 {[%clk
0:00:35.3]} 31. Ba4 {[%clk 0:01:16.6]} 31... g6 {[%clk 0:00:19.7]} 32. fxg6+
{[%clk 0:01:12.1]} 32... Kxg6 {[%clk 0:00:20.6]} 33. Re5 {[%clk 0:01:11.2]}
33... Nd7 {[%clk 0:00:17.6]} 34. Bxd7 {[%clk 0:01:10.4]} 34... Rxd7 {[%clk
0:00:17.9]} 35. Rxe6+ {[%clk 0:01:10.3]} 35... Rxe6 {[%clk 0:00:16.3]} 36. Rxe6+
{[%clk 0:01:11.2]} 36... Kg7 {[%clk 0:00:16.1]} 37. Ke2 {[%clk 0:01:05.8]} 37...
Ra7 {[%clk 0:00:14.4]} 1-0

[Event "Early-Titled-Tuesday-Blitz-October-17-2023"]
[Site "Chess.com"]
[Date "2023.10.17"]
[Round "1"]
[White "Yeremyan_ChessMate"]
[Black "Logman74"]
[Result "1-0"]
[WhiteElo "2720"]
[BlackElo "2431"]
[TimeControl "180+1"]
[EndTime "8:06:13 PDT"]
[Termination "Yeremyan_ChessMate won on time"]

1. h3 {[%clk 0:02:59]} 1... d5 {[%clk 0:02:54.4]} 2. c4 {[%clk 0:02:59.3]} 2...
e6 {[%clk 0:02:54]} 3. cxd5 {[%clk 0:02:59.4]} 3... exd5 {[%clk 0:02:53.6]} 4.
g3 {[%clk 0:02:59.4]} 4... Nf6 {[%clk 0:02:53.9]} 5. Bg2 {[%clk 0:02:59.9]} 5...
c5 {[%clk 0:02:53.1]} 6. Nf3 {[%clk 0:03:00.6]} 6... Nc6 {[%clk 0:02:52.6]} 7.
O-O {[%clk 0:03:01.4]} 7... d4 {[%clk 0:02:52.3]} 8. d3 {[%clk 0:03:00.7]} 8...
Be7 {[%clk 0:02:52.6]} 9. e4 {[%clk 0:03:01.5]} 9... dxe3 {[%clk 0:02:51.3]} 10.
Bxe3 {[%clk 0:03:02.2]} 10... O-O {[%clk 0:02:51.1]} 11. d4 {[%clk 0:03:02.8]}
11... Nd5 {[%clk 0:02:45.7]} 12. Bc1 {[%clk 0:03:01.4]} 12... Ndb4 {[%clk
0:02:22.4]} 13. a3 {[%clk 0:03:00.3]} 13... Nd5 {[%clk 0:02:15.1]} 14. dxc5
{[%clk 0:02:57.9]} 14... Bxc5 {[%clk 0:02:13.9]} 15. Qc2 {[%clk 0:02:58.6]}
15... Qb6 {[%clk 0:01:59.9]} 16. b4 {[%clk 0:02:45.3]} 16... Be7 {[%clk
0:01:53.6]} 17. Bb2 {[%clk 0:02:42.7]} 17... Be6 {[%clk 0:01:49.1]} 18. Nbd2
{[%clk 0:02:43.3]} 18... Rac8 {[%clk 0:01:48.3]} 19. Qe4 {[%clk 0:02:42.9]}
19... Bf6 {[%clk 0:01:45.2]} 20. Bxf6 {[%clk 0:02:37.1]} 20... Nxf6 {[%clk
0:01:45.9]} 21. Qh4 {[%clk 0:02:37.8]} 21... h6 {[%clk 0:01:45.1]} 22. Rae1
{[%clk 0:02:35.7]} 22... Rfd8 {[%clk 0:01:41.2]} 23. g4 {[%clk 0:02:33.1]} 23...
Nd4 {[%clk 0:01:31.9]} 24. g5 {[%clk 0:02:29.9]} 24... Nf5 {[%clk 0:01:18.5]}
25. Qf4 {[%clk 0:02:22.1]} 25... hxg5 {[%clk 0:01:17.9]} 26. Nxg5 {[%clk
0:02:19.5]} 26... Rd4 {[%clk 0:01:12.3]} 27. Nde4 {[%clk 0:02:19.6]} 27... Nxe4
{[%clk 0:01:10.5]} 28. Rxe4 {[%clk 0:02:17.5]} 28... Rxe4 {[%clk 0:00:55.5]} 29.
Bxe4 {[%clk 0:02:17.1]} 29... Qd4 {[%clk 0:00:46.4]} 30. Re1 {[%clk 0:01:54.6]}
30... Rf8 {[%clk 0:00:27.8]} 31. Qg4 {[%clk 0:01:50.9]} 31... Qf6 {[%clk
0:00:17]} 32. Qh5 {[%clk 0:01:45.1]} 32... Qh6 {[%clk 0:00:14.7]} 33. Qxh6
{[%clk 0:01:43.2]} 33... Nxh6 {[%clk 0:00:15.4]} 34. Nxe6 {[%clk 0:01:43.4]}
34... fxe6 {[%clk 0:00:16.1]} 35. Bxb7 {[%clk 0:01:44.1]} 35... Kf7 {[%clk
0:00:14.8]} 36. Be4 {[%clk 0:01:43.3]} 36... Kf6 {[%clk 0:00:14.9]} 37. Rc1
{[%clk 0:01:41.7]} 37... Rd8 {[%clk 0:00:14.9]} 38. Rc7 {[%clk 0:01:40.7]} 38...
Rd4 {[%clk 0:00:15.6]} 39. f3 {[%clk 0:01:41.1]} 39... a5 {[%clk 0:00:13.3]} 40.
b5 {[%clk 0:01:39.6]} 40... Ra4 {[%clk 0:00:13.7]} 41. b6 {[%clk 0:01:39.1]}
41... Rxa3 {[%clk 0:00:03.3]} 42. b7 {[%clk 0:01:39.6]} 42... Rb3 {[%clk
0:00:04.1]} 43. Rc8 {[%clk 0:01:40.3]} 43... Nf5 {[%clk 0:00:03.7]} 44. b8=Q
{[%clk 0:01:39.1]} 1-0

[Event "Early-Titled-Tuesday-Blitz-October-17-2023"]
[Site "Chess.com"]
[Date "2023.10.17"]
[Round "1"]
[White "scarabee43"]
[Black "Tsyhanchuk_Stanislav"]
[Result "1-0"]
[WhiteElo "2780"]
[BlackElo "2455"]
[TimeControl "180+1"]
[EndTime "8:06:15 PDT"]
[Termination "scarabee43 won on time"]

1. d4 {[%clk 0:03:00.9]} 1... Nf6 {[%clk 0:02:58.4]} 2. c4 {[%clk 0:03:01]} 2...
e6 {[%clk 0:02:58.1]} 3. Nf3 {[%clk 0:03:01.4]} 3... d5 {[%clk 0:02:58]} 4. Nc3
{[%clk 0:03:01.4]} 4... a6 {[%clk 0:02:57.8]} 5. cxd5 {[%clk 0:03:00]} 5... exd5
{[%clk 0:02:57.7]} 6. Bf4 {[%clk 0:03:00.1]} 6... c5 {[%clk 0:02:53.3]} 7. e3
{[%clk 0:02:56.6]} 7... Nc6 {[%clk 0:02:52.2]} 8. Be2 {[%clk 0:02:54.1]} 8...
cxd4 {[%clk 0:02:51.6]} 9. Nxd4 {[%clk 0:02:54.1]} 9... Be7 {[%clk 0:02:47.4]}
10. O-O {[%clk 0:02:53.4]} 10... O-O {[%clk 0:02:47.7]} 11. Rc1 {[%clk
0:02:52.9]} 11... Nxd4 {[%clk 0:02:03.8]} 12. Qxd4 {[%clk 0:02:52.6]} 12... Be6
{[%clk 0:02:03.9]} 13. Na4 {[%clk 0:02:29.4]} 13... Bd6 {[%clk 0:01:53.9]} 14.
Bxd6 {[%clk 0:02:22.4]} 14... Qxd6 {[%clk 0:01:54.8]} 15. Nc5 {[%clk 0:02:19.2]}
15... b6 {[%clk 0:01:43]} 16. Nxa6 {[%clk 0:02:07]} 16... Bg4 {[%clk 0:01:18]}
17. Bxg4 {[%clk 0:02:04.7]} 17... Rxa6 {[%clk 0:01:17.8]} 18. a3 {[%clk
0:02:01.4]} 18... Ra7 {[%clk 0:01:04.7]} 19. Bf3 {[%clk 0:01:51.7]} 19... Rd7
{[%clk 0:00:49.1]} 20. Rc3 {[%clk 0:01:47.8]} 20... h5 {[%clk 0:00:41.9]} 21.
Rfc1 {[%clk 0:01:46.4]} 21... Qe7 {[%clk 0:00:32.4]} 22. Qxb6 {[%clk 0:01:29.5]}
22... g5 {[%clk 0:00:31.4]} 23. Qc5 {[%clk 0:01:26]} 23... Qe6 {[%clk
0:00:13.5]} 24. Qd4 {[%clk 0:01:22.1]} 24... g4 {[%clk 0:00:12.9]} 25. Rc6
{[%clk 0:01:21.2]} 25... Rd6 {[%clk 0:00:09.4]} 26. Rxd6 {[%clk 0:01:21.5]}
26... Qxd6 {[%clk 0:00:10.3]} 27. Be2 {[%clk 0:01:21.1]} 27... Ne4 {[%clk
0:00:10.1]} 28. Bd3 {[%clk 0:01:19.2]} 28... f5 {[%clk 0:00:09.8]} 29. Bxe4
{[%clk 0:01:19]} 29... fxe4 {[%clk 0:00:10.3]} 30. Rc5 {[%clk 0:01:14]} 30...
Rd8 {[%clk 0:00:06.4]} 31. g3 {[%clk 0:01:12.5]} 31... Qe6 {[%clk 0:00:02.4]}
32. a4 {[%clk 0:01:10.2]} 32... Qf5 {[%clk 0:00:02.6]} 33. Rc7 {[%clk
0:01:09.9]} 33... Qg6 {[%clk 0:00:01.1]} 34. Qe5 {[%clk 0:01:08.8]} 1-0